Workbook

Sheet Расходы
A2: Аналитические данные о расходах бюджета Заволжского муниципального района по разделам и подразделам классификации расходов за 9 месяцев 2025 года в сравнении с соответствующим периодом 2024 года
A4: Наименование показателя | B4: Код классификации расходов бюджетов Российской Федерации | H4: Исполнено за 9 месяцев 2025 года (руб.) | O4: Исполнено за 9 месяцев 2024 года (руб.) | P4: Рост (снижение) 2025 года к 2024 году (по состоянию на 1 октября)
C5: бюджет субъекта Российской Федерации | D5: бюджеты внутри- городских муниципальных образований городов федерального значения | E5: бюджеты городских округов | F5: бюджеты городских округов с внутри- городским делением | G5: бюджеты внутри- городских районов | I5: бюджет территориаль- ного государ- ственного внебюджетного фонда | J5: бюджет субъекта Российской Федерации | K5: бюджеты внутри- городских муниципальных образований городов федерального значения | L5: бюджеты городских округов | M5: бюджеты городских округов с внутри- городским делением | N5: бюджеты внутри- городских районов | P5: в % (гр.4/гр.3*100) | Q5: в руб. (гр.4-гр.3)
A6: 1 | B6: 2 | C6: 8 | D6: 9 | E6: 10 | F6: 11 | G6: 12 | H6: 3 | I6: 16 | J6: 21 | K6: 22 | L6: 23 | M6: 24 | N6: 25 | O6: 4 | P6: 5 | Q6: 6
A7: Расходы бюджета - ИТОГО | B7: х | C7: 0.00 | D7: 0.00 | E7: 0.00 | F7: 0.00 | G7: 0.00 | H7: =H9+H15+H18+H23+H31+H38+H40+H45+H28 -> 399,635,997.95 | I7: 0.00 | J7: 0.00 | K7: 0.00 | L7: 0.00 | M7: 0.00 | N7: 0.00 | O7: 820,054,015.57 | P7: =O7/H7*100 -> 205.20 | Q7: =O7-H7 -> 420,418,017.62
A8: в том числе:
A9: ОБЩЕГОСУДАРСТВЕННЫЕ ВОПРОСЫ | B9: 000 0100 0000000000 000 | C9: 0.00 | D9: 0.00 | E9: 0.00 | F9: 0.00 | G9: 0.00 | H9: =H10+H11+H12+H14 -> 62,870,925.34 | I9: =I10+I11+I12+I14 -> 0.00 | J9: 0.00 | K9: 0.00 | L9: 0.00 | M9: 0.00 | N9: 0.00 | O9: 57,646,137.82 | P9: =O9/H9*100 -> 91.69 | Q9: =O9-H9 -> -5,224,787.52
A10: Функционирование высшего должностного лица субъекта Российской Федерации и муниципального образования | B10: 000 0102 0000000000 000 | C10: 0.00 | D10: 0.00 | E10: 0.00 | F10: 0.00 | G10: 0.00 | H10: 1,004,406.01 | I10: 0.00 | J10: 0.00 | K10: 0.00 | L10: 0.00 | M10: 0.00 | N10: 0.00 | O10: 3,136,830.36 | P10: =O10/H10*100 -> 312.31 | Q10: 2,132,424.35
A11: Функционирование Правительства Российской Федерации, высших исполнительных органов государственной власти субъектов Российской Федерации, местных администраций | B11: 000 0104 0000000000 000 | C11: 0.00 | D11: 0.00 | E11: 0.00 | F11: 0.00 | G11: 0.00 | H11: 34,710,576.73 | I11: 0.00 | J11: 0.00 | K11: 0.00 | L11: 0.00 | M11: 0.00 | N11: 0.00 | O11: 29,875,378.17 | P11: 86.07 | Q11: -4,835,198.56
A12: Обеспечение деятельности финансовых, налоговых и таможенных органов и органов финансового (финансово-бюджетного) надзора | B12: 000 0106 0000000000 000 | C12: 0.00 | D12: 0.00 | E12: 0.00 | F12: 0.00 | G12: 0.00 | H12: 6,849,516.06 | I12: 0.00 | J12: 0.00 | K12: 0.00 | L12: 0.00 | M12: 0.00 | N12: 0.00 | O12: 5,724,657.19 | P12: 83.58 | Q12: -1,124,858.87
A13: Резервные фонды | B13: 000 0111 0000000000 000 | C13: 0.00 | D13: 0.00 | E13: 0.00 | F13: 0.00 | G13: 0.00 | H13: 0.00 | I13: 0.00 | J13: 0.00 | K13: 0.00 | L13: 0.00 | M13: 0.00 | N13: 0.00 | O13: 0.00 | Q13: 0.00
A14: Другие общегосударственные вопросы | B14: 000 0113 0000000000 000 | C14: 0.00 | D14: 0.00 | E14: 0.00 | F14: 0.00 | G14: 0.00 | H14: 20,306,426.54 | I14: 0.00 | J14: 0.00 | K14: 0.00 | L14: 0.00 | M14: 0.00 | N14: 0.00 | O14: 18,909,272.10 | P14: 93.12 | Q14: -1,397,154.44
A15: НАЦИОНАЛЬНАЯ БЕЗОПАСНОСТЬ И ПРАВООХРАНИТЕЛЬНАЯ ДЕЯТЕЛЬНОСТЬ | B15: 000 0300 0000000000 000 | C15: 0.00 | D15: 0.00 | E15: 0.00 | F15: 0.00 | G15: 0.00 | H15: =H16+H17 -> 1,447,295.50 | I15: =I16+I17 -> 0.00 | J15: 0.00 | K15: 0.00 | L15: 0.00 | M15: 0.00 | N15: 0.00 | O15: 1,568,173.55 | P15: 108.35 | Q15: 120,878.05
A16: Защита населения и территории от чрезвычайных ситуаций природного и техногенного характера, пожарная безопасность | B16: 000 0310 0000000000 000 | C16: 0.00 | D16: 0.00 | E16: 0.00 | F16: 0.00 | G16: 0.00 | H16: 1,354,815.50 | I16: 0.00 | J16: 0.00 | K16: 0.00 | L16: 0.00 | M16: 0.00 | N16: 0.00 | O16: 1,482,700.00 | P16: 109.44 | Q16: 127,884.50
A17: Другие вопросы в области национальной безопасности и прправоохранительной деятельности | B17: 000 0314 0000000000 000 | H17: 92,480.00 | O17: 85,473.55 | P17: 92.42 | Q17: -7,006.45
A18: НАЦИОНАЛЬНАЯ ЭКОНОМИКА | B18: 000 0400 0000000000 000 | C18: 0.00 | D18: 0.00 | E18: 0.00 | F18: 0.00 | G18: 0.00 | H18: =H20+H21+H22 -> 59,248,706.62 | I18: =I20+I21+I22 -> 0.00 | J18: 0.00 | K18: 0.00 | L18: 0.00 | M18: 0.00 | N18: 0.00 | O18: 34,528,756.09 | P18: 58.28 | Q18: -24,719,950.53
A19: Сельское хозяйство и рыболовство | B19: 000 0405 0000000000 000 | C19: 0.00 | D19: 0.00 | E19: 0.00 | F19: 0.00 | G19: 0.00 | H19: 0.00 | I19: 0.00 | J19: 0.00 | K19: 0.00 | L19: 0.00 | M19: 0.00 | N19: 0.00 | O19: 0.00 | P19: 0.00 | Q19: 0.00
A20: Сельское хозяйство и рыболовство | B20: 000 0405 0000000000 000 | C20: 0.00 | D20: 0.00 | E20: 0.00 | F20: 0.00 | G20: 0.00 | H20: 60,200.30 | I20: 0.00 | J20: 0.00 | K20: 0.00 | L20: 0.00 | M20: 0.00 | N20: 0.00 | O20: 0.00 | P20: 0.00 | Q20: -60,200.30
A21: Транспорт | B21: 000 0408 0000000000 000 | C21: 0.00 | D21: 0.00 | E21: 0.00 | F21: 0.00 | G21: 0.00 | H21: 0.00 | I21: 0.00 | J21: 0.00 | K21: 0.00 | L21: 0.00 | M21: 0.00 | N21: 0.00 | O21: 0.00 | Q21: 0.00
A22: Дорожное хозяйство (дорожные фонды) | B22: 000 0409 0000000000 000 | C22: 0.00 | D22: 0.00 | E22: 0.00 | F22: 0.00 | G22: 0.00 | H22: 59,188,506.32 | I22: 0.00 | J22: 0.00 | K22: 0.00 | L22: 0.00 | M22: 0.00 | N22: 0.00 | O22: 34,528,756.09 | P22: 58.34 | Q22: -24,659,750.23
A23: ЖИЛИЩНО-КОММУНАЛЬНОЕ ХОЗЯЙСТВО | B23: 000 0500 0000000000 000 | C23: 0.00 | D23: 0.00 | E23: 0.00 | F23: 0.00 | G23: 0.00 | H23: =H24+H25+H26+H27 -> 42,256,358.78 | I23: =I24+I25+I26+I27 -> 0.00 | J23: 0.00 | K23: 0.00 | L23: 0.00 | M23: 0.00 | N23: 0.00 | O23: 43,771,761.81 | P23: 103.59 | Q23: 1,515,403.03
A24: Жилищное хозяйство | B24: 000 0501 0000000000 000 | H24: 6,021,074.48 | O24: 9,354,593.08 | P24: 155.36 | Q24: 3,333,518.60
A25: Коммунальное хозяйство | B25: 000 0502 0000000000 000 | C25: 0.00 | D25: 0.00 | E25: 0.00 | F25: 0.00 | G25: 0.00 | H25: 18,452,621.72 | I25: 0.00 | J25: 0.00 | K25: 0.00 | L25: 0.00 | M25: 0.00 | N25: 0.00 | O25: 18,585,174.78 | P25: 100.72 | Q25: 132,553.06
A26: Благоустройство | B26: 000 0503 0000000000 000 | H26: 17,782,662.58 | O26: 13,534,248.60 | P26: 76.11 | Q26: -4,248,413.98
A27: Другие вопросы в области жилищно-коммунального хозяйства | B27: 000 0505 0000000000 000 | H27: 0.00 | O27: 2,297,745.35 | Q27: 2,297,745.35
A28: ОХРАНА ОКРУЖАЮЩЕЙ СРЕДЫ | B28: 000 0600 0000000000 000 | H28: =H29+H30 -> 0.00 | I28: =I29+I30 -> 0.00 | J28: 0.00 | K28: 0.00 | L28: 0.00 | M28: 0.00 | N28: 0.00 | O28: 470,653,021.00 | Q28: 470,653,021.00
A29: Сбор, удаление отходов и очистка сточных вод | B29: 000 0602 0000000000 000 | H29: 0.00 | O29: 565,917.00 | Q29: 565,917.00
A30: Охрана объектов растительного и животного мира и среды их обитания | B30: 000 0603 0000000000 000 | H30: 0.00 | O30: 470,087,104.00 | Q30: 470,087,104.00
A31: ОБРАЗОВАНИЕ | B31: 000 0700 0000000000 000 | C31: 0.00 | D31: 0.00 | E31: 0.00 | F31: 0.00 | G31: 0.00 | H31: =H32+H33+H34+H35+H36+H37 -> 212,164,001.51 | I31: =I32+I33+I34+I35+I36+I37 -> 0.00 | J31: 0.00 | K31: 0.00 | L31: 0.00 | M31: 0.00 | N31: 0.00 | O31: 192,301,443.42 | P31: 90.64 | Q31: -19,862,558.09
A32: Дошкольное образование | B32: 000 0701 0000000000 000 | C32: 0.00 | D32: 0.00 | E32: 0.00 | F32: 0.00 | G32: 0.00 | H32: 67,371,163.85 | I32: 0.00 | J32: 0.00 | K32: 0.00 | L32: 0.00 | M32: 0.00 | N32: 0.00 | O32: 65,671,006.41 | P32: 97.48 | Q32: -1,700,157.44
A33: Общее образование | B33: 000 0702 0000000000 000 | C33: 0.00 | D33: 0.00 | E33: 0.00 | F33: 0.00 | G33: 0.00 | H33: 108,884,885.33 | I33: 0.00 | J33: 0.00 | K33: 0.00 | L33: 0.00 | M33: 0.00 | N33: 0.00 | O33: 98,627,127.94 | P33: 90.58 | Q33: -10,257,757.39
A34: Допонительное образование детей | B34: 000 0703 0000000000 000 | C34: 0.00 | D34: 0.00 | E34: 0.00 | F34: 0.00 | G34: 0.00 | H34: 22,582,280.00 | I34: 0.00 | J34: 0.00 | K34: 0.00 | L34: 0.00 | M34: 0.00 | N34: 0.00 | O34: 17,162,752.00 | P34: 76.00 | Q34: -5,419,528.00
A35: Профессиональная подготовка, переподготовка и повышение квалификации | B35: 000 0705 0000000000 000 | C35: 0.00 | D35: 0.00 | E35: 0.00 | F35: 0.00 | G35: 0.00 | H35: 36,438.00 | I35: 0.00 | J35: 0.00 | K35: 0.00 | L35: 0.00 | M35: 0.00 | N35: 0.00 | O35: 4,500.00 | P35: 12.35 | Q35: -31,938.00
A36: Молодежная политика | B36: 000 0707 0000000000 000 | C36: 0.00 | D36: 0.00 | E36: 0.00 | F36: 0.00 | G36: 0.00 | H36: 57,812.46 | I36: 0.00 | J36: 0.00 | K36: 0.00 | L36: 0.00 | M36: 0.00 | N36: 0.00 | O36: 99,400.00 | P36: 171.94 | Q36: 41,587.54
A37: Другие вопросы в области образования | B37: 000 0709 0000000000 000 | C37: 0.00 | D37: 0.00 | E37: 0.00 | F37: 0.00 | G37: 0.00 | H37: 13,231,421.87 | I37: 0.00 | J37: 0.00 | K37: 0.00 | L37: 0.00 | M37: 0.00 | N37: 0.00 | O37: 10,736,657.07 | P37: 81.15 | Q37: -2,494,764.80
A38: КУЛЬТУРА, КИНЕМАТОГРАФИЯ | B38: 000 0800 0000000000 000 | C38: 0.00 | D38: 0.00 | E38: 0.00 | F38: 0.00 | G38: 0.00 | H38: =H39 -> 5,031,669.03 | I38: =I39 -> 0.00 | J38: 0.00 | K38: 0.00 | L38: 0.00 | M38: 0.00 | N38: 0.00 | O38: 3,780,329.03 | P38: 75.13 | Q38: -1,251,340.00
A39: Культура | B39: 000 0801 0000000000 000 | C39: 0.00 | D39: 0.00 | E39: 0.00 | F39: 0.00 | G39: 0.00 | H39: 5,031,669.03 | I39: 0.00 | J39: 0.00 | K39: 0.00 | L39: 0.00 | M39: 0.00 | N39: 0.00 | O39: 3,780,329.03 | P39: 75.13 | Q39: -1,251,340.00
A40: СОЦИАЛЬНАЯ ПОЛИТИКА | B40: 000 1000 0000000000 000 | C40: 0.00 | D40: 0.00 | E40: 0.00 | F40: 0.00 | G40: 0.00 | H40: =H41+H42+H43+H44 -> 7,154,709.94 | I40: =I41+I42+I43+I44 -> 0.00 | J40: 0.00 | K40: 0.00 | L40: 0.00 | M40: 0.00 | N40: 0.00 | O40: 7,471,349.85 | P40: 104.43 | Q40: 316,639.91
A41: Пенсионное обеспечение | B41: 000 1001 0000000000 000 | C41: 0.00 | D41: 0.00 | E41: 0.00 | F41: 0.00 | G41: 0.00 | H41: 2,784,326.03 | I41: 0.00 | J41: 0.00 | K41: 0.00 | L41: 0.00 | M41: 0.00 | N41: 0.00 | O41: 2,552,520.26 | P41: 91.67 | Q41: -231,805.77
A42: Социальное обеспечение населения | B42: 000 1003 0000000000 000 | C42: 0.00 | D42: 0.00 | E42: 0.00 | F42: 0.00 | G42: 0.00 | H42: 102,000.00 | I42: 0.00 | J42: 0.00 | K42: 0.00 | L42: 0.00 | M42: 0.00 | N42: 0.00 | O42: 561,482.50 | P42: 0.00 | Q42: 459,482.50
A43: Охрана семьи и детства | B43: 000 1004 0000000000 000 | C43: 0.00 | D43: 0.00 | E43: 0.00 | F43: 0.00 | G43: 0.00 | H43: 2,147,383.91 | I43: 0.00 | J43: 0.00 | K43: 0.00 | L43: 0.00 | M43: 0.00 | N43: 0.00 | O43: 2,353,747.09 | P43: 109.61 | Q43: 206,363.18
A44: Другие вопросы в области социальной политики | B44: 000 1006 0000000000 000 | H44: 2,121,000.00 | O44: 2,003,600.00 | P44: 94.46 | Q44: -117,400.00
A45: ФИЗИЧЕСКАЯ КУЛЬТУРА И СПОРТ | B45: 000 1100 0000000000 000 | C45: 0.00 | D45: 0.00 | E45: 0.00 | F45: 0.00 | G45: 0.00 | H45: =H46+H47 -> 9,462,331.23 | I45: =I46+I47 -> 0.00 | J45: 0.00 | K45: 0.00 | L45: 0.00 | M45: 0.00 | N45: 0.00 | O45: 8,333,043.00 | P45: 88.07 | Q45: -1,129,288.23
A46: Физическая культура | B46: 000 1101 0000000000 000 | H46: 601,851.29 | O46: 662,501.58 | P46: 110.08 | Q46: 60,650.29
A47: Спорт высших достижений | B47: 000 1103 0000000000 000 | C47: 0.00 | D47: 0.00 | E47: 0.00 | F47: 0.00 | G47: 0.00 | H47: 8,860,479.94 | I47: 0.00 | J47: 0.00 | K47: 0.00 | L47: 0.00 | M47: 0.00 | N47: 0.00 | O47: 7,670,541.42 | P47: 86.57 | Q47: -1,189,938.52
Q48: ""
